bitfinex/quotes_BTCUSD_20240821
["timestamp","ask_amount","ask_price","bid_price","bid_amount"]
[1724269295967,2.34563738,61344.0,61333.0,0.0008675]
[1724269296396,2.34163798,61344.0,61333.0,0.0008675]
[1724269296611,2.35763738,61344.0,61343.0,0.0019086]
[1724269296826,2.35963738,61344.0,61343.0,0.0019086]
[1724269297060,1.99160798,61344.0,61343.0,0.0009086]
[1724269297270,2.16058616,61344.0,61343.0,0.0009086]
[1724269297485,2.17458616,61344.0,61343.0,0.0019086]
[1724269297693,2.50061616,61344.0,61343.0,0.0019086]
[1724269297906,2.50851462,61344.0,61343.0,0.0019086]
[1724269298355,4.12406831,61344.0,61343.0,0.0019086]
[1724269298569,3.94608953,61344.0,61343.0,0.0009086]
[1724269299006,3.96008953,61344.0,61343.0,0.0019086]
[1724269299210,4.12406831,61344.0,61343.0,0.0019086]
[1724269299454,4.11006831,61344.0,61343.0,0.0009086]
[1724269299907,4.11006831,61344.0,61324.0,0.00531045]
[1724269299908,0.893496,61325.0,61324.0,0.00531045]
[1724269300524,0.567365,61325.0,61324.0,0.00531045]
[1724269300752,1.59255369,61329.0,61328.0,0.163057]
[1724269300973,1.59255369,61329.0,61328.0,0.815287]
[1724269301182,1.59255369,61329.0,61324.0,0.00531045]
[1724269301398,0.326121,61327.0,61324.0,0.00531045]
[1724269301609,0.489196,61325.0,61324.0,0.00531045]
[1724269301815,0.163065,61325.0,61324.0,0.00531045]
[1724269302260,0.163065,61325.0,61324.0,0.00831045]
[1724269302472,0.97932998,61325.0,61324.0,0.00831045]
[1724269302678,1.16142998,61325.0,61324.0,0.00531045]
[1724269302897,1.32540876,61325.0,61324.0,0.00631045]
[1724269303108,3.24709345,61325.0,61324.0,0.00631045]
[1724269303334,3.37009345,61325.0,61324.0,0.00531045]
[1724269303758,4.09892385,61325.0,61324.0,0.00347045]
[1724269303976,0.8203914,61320.0,61319.0,0.009042]
[1724269304185,2.23775138,61320.0,61319.0,0.009042]
[1724269304394,2.68690838,61320.0,61319.0,0.009042]
[1724269305329,4.27946207,61320.0,61319.0,0.009042]
[1724269305540,3.95330507,61320.0,61319.0,0.009042]
[1724269305754,2.32845667,61320.0,61319.0,0.009042]
[1724269305970,1.59255369,61320.0,61319.0,0.009042]
[1724269306201,2.57194867,61320.0,61319.0,0.009042]
[1724269306413,2.57194867,61320.0,61319.0,0.010042]
[1724269306414,2.91210567,61320.0,61319.0,0.010042]
[1724269306621,3.30630567,61320.0,61319.0,0.010042]
[1724269306826,3.30830507,61320.0,61319.0,0.010042]
[1724269307035,3.63646207,61320.0,61319.0,0.010042]
[1724269307257,4.08524085,61320.0,61319.0,0.010042]
[1724269307472,4.10824085,61320.0,61319.0,0.010042]
[1724269307743,4.11596067,61320.0,61319.0,0.010042]
[1724269308008,3.95198189,61320.0,61319.0,0.007202]
[1724269309445,3.95202189,61320.0,61319.0,0.007202]
[1724269310842,3.95284789,61320.0,61319.0,0.007202]
[1724269311085,3.94884849,61320.0,61319.0,0.007202]
[1724269311283,3.62269149,61320.0,61319.0,0.007202]
[1724269311511,3.63975826,61320.0,61319.0,0.007202]
[1724269311729,2.37672444,61320.0,61319.0,0.007202]
[1724269311936,1.95056744,61320.0,61319.0,0.007202]
[1724269312154,1.62348646,61320.0,61319.0,0.007202]
[1724269312810,1.78656446,61320.0,61319.0,0.007202]
[1724269313014,2.93203844,61320.0,61319.0,0.007202]
[1724269313219,2.97779635,61320.0,61319.0,0.007202]
[1724269314069,0.8204464,61316.0,61315.0,0.009075]
[1724269314283,3.09928207,61316.0,61315.0,0.009075]
[1724269314503,3.52546107,61316.0,61315.0,0.009075]
[1724269314729,3.54846107,61316.0,61315.0,0.009075]
[1724269315414,3.55546107,61316.0,61315.0,0.009075]
[1724269315868,1.5289994,61312.0,61311.0,0.009075]
[1724269316081,3.40855607,61312.0,61311.0,0.009075]
[1724269316302,3.40455667,61312.0,61311.0,0.009075]
[1724269316759,3.40355667,61312.0,61311.0,0.009075]
[1724269316971,2.72815667,61312.0,61311.0,0.009075]
[1724269317186,1.59255369,61312.0,61311.0,0.009075]
[1724269317413,2.57205667,61312.0,61311.0,0.009075]
[1724269317745,3.31785607,61312.0,61311.0,0.009075]
[1724269317982,2.25385667,61312.0,61311.0,0.009075]
[1724269318172,2.58005667,61312.0,61311.0,0.009075]
[1724269318385,2.60405667,61312.0,61311.0,0.009075]
[1724269318592,2.60405667,61312.0,61311.0,0.422875]
[1724269318593,1.60016112,61312.0,61311.0,0.422875]
[1724269318807,1.60016112,61312.0,61311.0,1.436587]
[1724269319007,1.60016112,61312.0,61311.0,2.25299998]
[1724269319419,1.60016112,61312.0,61311.0,1.92679498]
[1724269319745,1.60016112,61312.0,61311.0,1.762792]
[1724269320599,1.60020112,61312.0,61311.0,1.762792]
[1724269320783,1.59220112,61312.0,61311.0,1.762792]
[1724269321274,1.59320112,61312.0,61311.0,1.762792]
[1724269321504,1.59320112,61312.0,61311.0,0.696582]
[1724269321721,1.59220112,61312.0,61311.0,0.82390068]
[1724269321940,1.59220112,61312.0,61311.0,1.89650866]
[1724269322154,1.59320112,61312.0,61311.0,2.22271366]
[1724269322537,1.59220112,61312.0,61311.0,2.22271366]
[1724269322745,1.59220112,61312.0,61311.0,2.55191866]
[1724269322962,0.89200112,61312.0,61311.0,2.55191866]
[1724269323183,0.54220112,61312.0,61311.0,2.47611866]
[1724269323397,0.000866,61320.0,61319.0,1.903796]
[1724269323606,0.000866,61320.0,61319.0,2.54609898]
[1724269324291,4e-05,61325.0,61324.0,1.470612]
[1724269324519,4e-05,61325.0,61324.0,2.11121498]
[1724269325659,4e-05,61325.0,61324.0,1.78507898]
[1724269326074,4e-05,61325.0,61324.0,1.521076]
[1724269326283,0.00104,61325.0,61324.0,1.521076]
[1724269326705,0.00104,61325.0,61324.0,0.81534]
[1724269327537,4e-05,61325.0,61324.0,0.81534]
[1724269327970,0.00104,61325.0,61324.0,0.81534]
[1724269328388,4e-05,61325.0,61324.0,0.81534]
[1724269328617,0.00104,61325.0,61324.0,0.81534]
[1724269329041,0.00104,61325.0,61324.0,1.141476]
[1724269329279,0.70724,61325.0,61324.0,1.141476]
[1724269329926,0.70724,61325.0,61324.0,0.81534]
[1724269330336,0.70724,61325.0,61320.0,0.326157]
[1724269330337,0.70724,61325.0,61322.0,0.163071]
[1724269330699,0.70724,61325.0,61312.0,0.3766]
[1724269330700,0.70724,61325.0,61315.0,0.163089]
[1724269330872,0.70724,61325.0,61324.0,0.163068]
[1724269331075,0.70724,61325.0,61313.0,0.326194]
[1724269331302,0.163071,61323.0,61318.0,0.163082]
[1724269331653,0.32704978,61323.0,61318.0,0.163082]
[1724269331880,0.163071,61323.0,61318.0,0.163082]
[1724269332065,0.36230298,61322.0,61311.0,0.00838868]
[1724269332277,0.163087,61317.0,61313.0,0.163096]
[1724269332475,0.326158,61320.0,61314.0,0.163093]
[1724269332673,0.16400298,61319.0,61314.0,0.163093]
[1724269333171,0.32708498,61319.0,61314.0,0.163093]
[1724269333541,0.163084,61318.0,61313.0,0.163096]
[1724269333743,0.32708698,61318.0,61313.0,0.163096]
[1724269334484,0.32708698,61318.0,61314.0,0.163093]
[1724269335857,0.16400298,61318.0,61315.0,0.163091]
[1724269336563,0.163088,61317.0,61312.0,0.163098]
[1724269337022,0.545589,61316.0,61311.0,0.00838868]
[1724269337278,0.3825,61316.0,61313.0,0.163097]
[1724269337538,0.3825,61316.0,61314.0,0.163094]
[1724269337725,0.16400298,61315.0,61311.0,0.17149068]
[1724269337938,0.32709598,61315.0,61311.0,0.17148968]
[1724269338370,0.869296,61314.0,61311.0,0.00838868]
[1724269338572,0.87020298,61314.0,61311.0,0.17148968]
[1724269338774,0.163098,61313.0,61311.0,0.00838868]
[1724269339149,0.83630298,61312.0,61311.0,0.00838868]
[1724269339370,1.16350298,61312.0,61311.0,0.00838868]
[1724269339527,1.16550298,61312.0,61311.0,0.00838868]
[1724269339739,1.16250298,61312.0,61311.0,0.00838868]
[1724269340288,0.83630298,61312.0,61311.0,0.00838868]
[1724269340498,0.183,61312.0,61311.0,0.00838868]
[1724269340776,0.7072,61314.0,61311.0,0.00838868]
[1724269340777,0.7072,61314.0,61311.0,0.33459368]
[1724269340973,0.7072,61314.0,61313.0,0.163097]
[1724269341174,0.7072,61314.0,61312.0,0.163099]
[1724269341374,0.7072,61314.0,61311.0,0.33459368]
[1724269341375,0.7062,61314.0,61311.0,0.00838868]
[1724269341565,0.7062,61314.0,61311.0,0.17148968]
[1724269341700,0.006,61312.0,61311.0,0.17148968]
[1724269341900,0.006,61312.0,61311.0,0.00838868]
[1724269342110,0.98550298,61312.0,61311.0,0.00838868]
[1724269342309,1.38530298,61312.0,61311.0,0.00838868]
[1724269342522,2.09150298,61312.0,61311.0,0.00838868]
[1724269342893,2.09450298,61312.0,61311.0,0.00838868]
[1724269343247,2.41470298,61312.0,61311.0,0.00838868]
[1724269343455,2.41170298,61312.0,61311.0,0.00838868]
[1724269343697,2.08550298,61312.0,61311.0,0.00838868]
[1724269344050,1.106,61312.0,61311.0,0.17149068]
[1724269344258,0.7062,61312.0,61311.0,0.82390068]
[1724269344523,0.7062,61312.0,61311.0,0.49769568]
[1724269344854,0.7122,61312.0,61311.0,0.49769568]
[1724269345057,0.7122,61312.0,61311.0,0.00838868]
[1724269345268,0.87620298,61312.0,61311.0,0.00838868]
[1724269345472,1.03930298,61312.0,61311.0,0.00838868]
[1724269345678,1.36550298,61312.0,61311.0,0.00838868]
[1724269346144,2.07060298,61312.0,61311.0,0.00838868]
[1724269346358,2.06460298,61312.0,61311.0,0.00838868]
[1724269346568,2.08860298,61312.0,61311.0,0.00838868]
[1724269346783,2.06860298,61312.0,61311.0,0.00838868]
[1724269346995,2.38030298,61312.0,61311.0,0.00838868]
[1724269347223,2.37630298,61312.0,61311.0,0.00838868]
[1724269347640,2.70750298,61312.0,61311.0,0.00838868]
[1724269348055,2.82127957,61312.0,61311.0,0.00838868]
[1724269348256,2.71045045,61312.0,61311.0,0.00838868]
[1724269349515,2.71945045,61312.0,61311.0,0.00838868]
[1724269349726,2.71150298,61312.0,61311.0,0.00838868]
[1724269349931,2.70250298,61312.0,61311.0,0.00838868]
[1724269350141,0.818527,61310.0,61309.0,0.0119345]
[1724269350346,1.00552998,61310.0,61309.0,0.0119345]
[1724269350560,1.43174098,61310.0,61309.0,0.0119345]
[1724269350772,1.80964038,61310.0,61309.0,0.0119345]
[1724269351198,1.47842998,61310.0,61309.0,0.0119345]
[1724269351416,0.54590298,61310.0,61309.0,0.0119345]
[1724269351629,0.006,61310.0,61309.0,0.0119345]
[1724269351842,0.169105,61310.0,61309.0,0.0119345]
[1724269352047,0.98552998,61310.0,61309.0,0.0119345]
[1724269352680,0.98052998,61310.0,61309.0,0.0119345]
[1724269352887,1.30674098,61310.0,61309.0,0.0119345]
[1724269353105,1.42232998,61310.0,61309.0,0.0119345]
[1724269353308,0.58380298,61310.0,61309.0,0.0119345]
[1724269353525,0.57780298,61310.0,61309.0,0.0119345]
[1724269353730,0.58380298,61310.0,61309.0,0.0119345]
[1724269353937,0.58380298,61310.0,61309.0,0.1750425]
[1724269354142,0.58380298,61310.0,61309.0,0.0119345]
[1724269354761,0.16400298,61310.0,61309.0,0.0119345]
[1724269354942,0.69781132,61311.0,61309.0,0.3381505]
[1724269355187,0.69781132,61311.0,61310.0,0.163105]
[1724269355818,0.69781132,61311.0,61310.0,0.815527]
[1724269356024,0.68941132,61311.0,61310.0,0.810527]
[1724269356455,0.68941132,61311.0,61310.0,0.158105]
[1724269356688,0.68941132,61311.0,61309.0,0.0119345]
[1724269356689,0.3981,61310.0,61309.0,0.0119345]
[1724269356886,0.56210298,61310.0,61309.0,0.0119345]
[1724269357659,1.05141898,61310.0,61309.0,0.0119345]
[1724269357870,1.37762998,61310.0,61309.0,0.0119345]
[1724269358075,1.37862998,61310.0,61309.0,0.0119345]
[1724269358281,1.37762998,61310.0,61309.0,0.0119345]
[1724269358716,0.56210298,61310.0,61309.0,0.0119345]
[1724269358930,0.16400298,61310.0,61309.0,0.0119345]
[1724269359357,0.69041132,61311.0,61310.0,0.815527]
[1724269359773,0.69041132,61311.0,61309.0,0.0119345]
[1724269359774,0.68941132,61311.0,61309.0,0.0119345]
[1724269360196,0.56230298,61310.0,61309.0,0.0119345]
[1724269360405,0.56230298,61310.0,61309.0,0.0128431]
[1724269360610,0.71940798,61310.0,61309.0,0.0128431]
[1724269360826,1.04661898,61310.0,61309.0,0.0128431]
[1724269361007,1.37482998,61310.0,61309.0,0.0128431]
[1724269361860,1.37182998,61310.0,61309.0,0.0128431]
[1724269362070,0.67656822,61309.0,61304.0,0.0001]
[1724269362275,0.163114,61307.0,61304.0,0.0001]
[1724269362484,0.16400298,61307.0,61305.0,0.163117]
[1724269362902,0.66366822,61308.0,61306.0,0.163115]
[1724269363310,0.66366822,61308.0,61305.0,0.4059]
[1724269363493,0.66366822,61308.0,61307.0,0.815567]
[1724269363744,0.66366822,61308.0,61307.0,0.48934]
[1724269363954,0.66366822,61308.0,61304.0,0.0001]
[1724269364374,0.66366822,61308.0,61307.0,0.48934]
[1724269364587,0.66366822,61308.0,61307.0,0.163113]
[1724269364797,0.66366822,61308.0,61304.0,0.0001]
[1724269365013,0.545715,61307.0,61304.0,0.0001]
[1724269365836,0.545715,61307.0,61304.0,0.163221]
[1724269366050,0.545715,61307.0,61304.0,0.0001]
[1724269366259,0.3826,61307.0,61304.0,0.0001]
[1724269366465,0.545713,61307.0,61304.0,0.163221]
[1724269366682,0.71058176,61307.0,61304.0,0.0001]
[1724269366890,0.163118,61305.0,61304.0,0.0001]
[1724269367096,1.30259498,61305.0,61304.0,0.0001]
[1724269367306,1.63083198,61305.0,61304.0,0.0001]
[1724269367522,1.62783198,61305.0,61304.0,0.0001]
[1724269367933,0.82668922,61304.0,61303.0,0.00017614]
[1724269368137,2.0924182,61304.0,61303.0,0.00017614]
[1724269368742,2.0934182,61304.0,61303.0,0.00017614]
[1724269368947,2.22785513,61304.0,61303.0,0.00017614]
[1724269369146,2.0924182,61304.0,61303.0,0.00017614]
[1724269369909,2.0694182,61304.0,61303.0,0.00017614]
[1724269371197,2.0924182,61304.0,61303.0,0.00017614]
[1724269371991,1.376712,61296.0,61292.0,0.009086]
[1724269372181,1.84911498,61296.0,61292.0,0.009086]
[1724269372381,2.27539998,61296.0,61292.0,0.009086]
[1724269372580,1.98999998,61296.0,61292.0,0.009086]
[1724269372938,1.96699998,61296.0,61292.0,0.009086]
[1724269373150,1.96899998,61296.0,61292.0,0.009086]
[1724269373352,1.97199998,61296.0,61292.0,0.009086]
[1724269373551,1.96999998,61296.0,61292.0,0.009086]
[1724269374003,1.97699998,61296.0,61292.0,0.009086]
[1724269375026,1.99999998,61296.0,61292.0,0.009086]
[1724269375234,2.06076822,61296.0,61292.0,0.009086]
[1724269375438,1.99999998,61296.0,61292.0,0.009086]
[1724269376026,2.00099998,61296.0,61292.0,0.009086]
[1724269376205,2.00099998,61296.0,61295.0,0.010086]
[1724269376206,2.01399998,61296.0,61295.0,0.010086]
[1724269376407,2.01299998,61296.0,61295.0,0.010086]
[1724269376833,2.01299998,61296.0,61292.0,0.009086]
[1724269376834,1.142036,61294.0,61293.0,0.008586]
[1724269377034,1.30603898,61294.0,61293.0,0.008586]
[1724269377236,1.30703898,61294.0,61293.0,0.008586]
[1724269377448,1.30603898,61294.0,61293.0,0.008586]
[1724269377658,1.33003898,61294.0,61293.0,0.008586]
[1724269378107,1.33203898,61294.0,61293.0,0.008586]
[1724269378496,1.34003898,61294.0,61293.0,0.008586]
[1724269379423,2.33481316,61294.0,61293.0,0.008586]
[1724269379595,2.81721316,61294.0,61293.0,0.009586]
[1724269379829,3.14350916,61294.0,61293.0,0.009586]
[1724269380470,2.65323438,61294.0,61293.0,0.009586]
[1724269380897,2.65323438,61294.0,61293.0,0.008586]
[1724269380898,2.64323438,61294.0,61293.0,0.008586]
[1724269381151,2.65723438,61294.0,61293.0,0.009586]
[1724269381532,2.65684176,61294.0,61293.0,0.009586]
[1724269381882,2.81282054,61294.0,61293.0,0.009586]
[1724269382082,2.66284176,61294.0,61293.0,0.009586]
[1724269382310,2.64884176,61294.0,61293.0,0.008586]
[1724269382512,2.63484176,61294.0,61293.0,0.008586]
[1724269382725,2.10814962,61293.0,61292.0,0.009086]
[1724269382925,2.3951526,61293.0,61292.0,0.009086]
[1724269383218,1.7145512,61293.0,61292.0,0.009086]
[1724269383385,1.7145512,61293.0,61292.0,0.172239]
[1724269383386,0.62619622,61293.0,61292.0,0.172239]
[1724269383727,0.62619622,61293.0,61292.0,0.581639]
[1724269383955,0.64019622,61293.0,61292.0,0.418486]
[1724269384531,1.2936502,61293.0,61292.0,0.009086]
[1724269384666,0.64019622,61293.0,61292.0,0.009086]
[1724269384862,0.64019622,61293.0,61292.0,0.498545]
[1724269385099,0.65419622,61293.0,61292.0,0.498545]
[1724269385331,0.65419622,61293.0,61292.0,0.009086]
[1724269385680,0.64019622,61293.0,61292.0,0.009086]
[1724269385885,0.63219622,61293.0,61292.0,0.009086]
[1724269386333,0.64119622,61293.0,61292.0,0.009086]
[1724269388707,0.61711022,61292.0,61290.0,0.163157]
[1724269389963,0.62411022,61292.0,61291.0,0.163156]
[1724269390375,0.62411022,61292.0,61289.0,0.16316]
[1724269390524,0.62411022,61292.0,61290.0,0.163158]
[1724269390726,0.62411022,61292.0,61281.0,0.484286]
[1724269390727,0.95041722,61292.0,61284.0,0.3953]
[1724269390947,0.163159,61290.0,61286.0,0.163169]
[1724269391140,0.62411022,61292.0,61291.0,0.163156]
[1724269391346,0.62911022,61292.0,61291.0,0.163156]
[1724269391688,0.62911022,61292.0,61290.0,0.163157]
[1724269391888,0.62411022,61292.0,61290.0,0.326317]
[1724269392096,0.62411022,61292.0,61291.0,0.489468]
[1724269392302,0.61711022,61292.0,61291.0,0.489468]
[1724269392492,0.61711022,61292.0,61291.0,0.81578]
[1724269392698,0.61501022,61292.0,61291.0,1.822792]
[1724269392929,0.60801022,61292.0,61291.0,2.31310698]
[1724269393331,0.61501022,61292.0,61291.0,2.31310698]
[1724269393969,0.61301022,61292.0,61291.0,2.31310698]
[1724269394474,0.60801022,61292.0,61291.0,2.31310698]
[1724269394713,0.60901022,61292.0,61291.0,2.31310698]
[1724269395538,0.60901022,61292.0,61291.0,2.31810698]
[1724269395752,0.60801022,61292.0,61291.0,2.31310698]
[1724269395954,0.60801022,61292.0,61291.0,2.31810698]
[1724269396158,0.60901022,61292.0,61291.0,2.03270698]
[1724269396379,0.60801022,61292.0,61291.0,2.02770698]
[1724269396586,0.60901022,61292.0,61291.0,2.03270698]
[1724269396790,0.60901022,61292.0,61291.0,1.868704]
[1724269397004,0.60801022,61292.0,61291.0,1.537392]
[1724269397206,0.60901022,61292.0,61291.0,1.542392]
[1724269397408,0.61001022,61292.0,61291.0,1.542392]
[1724269397837,0.002,61292.0,61291.0,1.052924]
[1724269398240,0.002,61292.0,61291.0,1.542392]
[1724269398241,0.001,61292.0,61291.0,1.542392]
[1724269398985,0.413426,61305.0,61291.0,1.542392]
[1724269398986,0.000826,61305.0,61300.0,0.163131]
[1724269399180,0.000826,61305.0,61304.0,0.879863]
[1724269399383,0.000826,61305.0,61304.0,1.206105]
[1724269399594,0.000826,61305.0,61304.0,0.815605]
[1724269399996,0.000826,61305.0,61304.0,1.141847]
[1724269400203,0.16309,61316.0,61311.0,0.163102]
[1724269400407,0.182926,61317.0,61310.0,0.326207]
[1724269400807,0.182926,61317.0,61312.0,0.163098]
[1724269401074,0.346013,61317.0,61312.0,0.163098]
[1724269401255,0.326994,61319.0,61318.0,0.163084]
[1724269401256,0.000826,61319.0,61318.0,0.163084]
[1724269401511,0.000826,61319.0,61318.0,0.81542]
[1724269402020,0.000826,61319.0,61318.0,0.489252]
[1724269402233,0.000826,61319.0,61318.0,0.81542]
[1724269402481,0.049926,61319.0,61318.0,0.81542]
[1724269403200,0.050926,61319.0,61318.0,1.141588]
[1724269403443,0.049926,61319.0,61318.0,1.70359098]
[1724269403906,0.049926,61319.0,61318.0,1.70559098]
[1724269404164,0.049926,61319.0,61318.0,2.03175898]
[1724269404604,0.049926,61319.0,61318.0,2.13175898]
[1724269404605,0.050926,61319.0,61318.0,2.13175898]
[1724269405217,0.049926,61319.0,61318.0,2.13075898]
[1724269405578,0.050926,61319.0,61318.0,2.13875898]
[1724269405774,0.049926,61319.0,61318.0,1.80359098]
[1724269406157,0.049926,61319.0,61318.0,1.81459098]
[1724269406158,0.050926,61319.0,61318.0,1.81459098]
[1724269406581,0.051926,61319.0,61318.0,1.81459098]
[1724269407059,0.051926,61319.0,61318.0,1.41659098]
[1724269408647,0.051926,61319.0,61318.0,1.70199098]
[1724269410394,0.051926,61319.0,61318.0,0.82642]
[1724269410700,0.051926,61319.0,61318.0,0.011]
[1724269411103,0.63765258,61319.0,61318.0,0.011]
[1724269411304,1.69157858,61319.0,61318.0,0.011]
[1724269411503,1.62983598,61319.0,61318.0,0.011]
[1724269411710,1.465833,61319.0,61318.0,0.011]
[1724269412110,1.95599898,61319.0,61318.0,0.011]
[1724269412314,0.163106,61310.0,61305.0,0.163118]
[1724269412520,0.163109,61309.0,61303.0,0.163122]
[1724269412730,0.16312,61305.0,61299.0,0.163133]
[1724269412961,0.16312,61305.0,61295.0,0.32629]
[1724269412962,0.16312,61305.0,61300.0,0.163131]
[1724269413961,0.326238,61305.0,61298.0,0.163135]
[1724269414161,0.326238,61305.0,61292.0,0.163153]
[1724269414162,0.326268,61300.0,61292.0,0.163153]
[1724269416098,0.538559,61292.0,61291.0,0.0009097]
[1724269416552,0.0491,61292.0,61291.0,0.0009097]
[1724269416694,0.218253,61292.0,61291.0,0.0009097]
[1724269416904,0.544559,61292.0,61291.0,0.0009097]
[1724269417147,0.540559,61292.0,61291.0,0.0009097]
[1724269417349,0.546559,61292.0,61291.0,0.0019097]
[1724269417546,0.546559,61292.0,61281.0,0.335446]
[1724269417547,0.2103463,61291.0,61281.0,0.335446]
[1724269417751,0.2103463,61291.0,61285.0,0.16317]
[1724269418362,0.0471903,61291.0,61287.0,0.163165]
[1724269418590,0.0471903,61291.0,61284.0,0.326349]
[1724269419002,0.0471903,61291.0,61286.0,0.163169]
[1724269419229,0.0531903,61291.0,61286.0,0.163169]
[1724269419430,0.0571903,61291.0,61286.0,0.163169]
[1724269419756,0.2203463,61291.0,61286.0,0.163169]
[1724269419961,0.54308,61282.0,61281.0,0.009086]
[1724269420189,1.3816,61282.0,61281.0,0.009086]
[1724269420779,1.05524,61282.0,61281.0,0.009086]
[1724269421497,0.5657,61282.0,61281.0,0.009086]
[1724269422017,1.05524,61282.0,61281.0,0.009086]
[1724269422421,0.72888,61282.0,61281.0,0.009086]
[1724269422618,1.05524,61282.0,61281.0,0.009086]
[1724269422820,1.05624,61282.0,61281.0,0.009086]
[1724269423220,1.07024,61282.0,61281.0,0.009086]
[1724269423399,1.05524,61282.0,61281.0,0.009086]
[1724269423596,1.06824,61282.0,61281.0,0.009086]
[1724269423836,0.75588,61282.0,61281.0,0.009086]
[1724269424032,0.74188,61282.0,61281.0,0.009086]
[1724269424405,0.72888,61282.0,61281.0,0.009086]
[1724269424581,0.72888,61282.0,61276.0,0.163195]
[1724269424582,0.0362043,61281.0,61276.0,0.163195]
[1724269424914,0.1993873,61281.0,61276.0,0.163195]
[1724269425117,0.16319,61278.0,61273.0,0.163202]
[1724269425354,0.489559,61280.0,61273.0,0.163202]
[1724269425551,0.163188,61279.0,61274.0,0.1632]
[1724269426160,0.0362043,61281.0,61278.0,0.163189]
[1724269426361,0.0362043,61281.0,61278.0,0.16319]
[1724269426515,0.0362043,61281.0,61277.0,0.326384]
[1724269426717,0.0362043,61281.0,61276.0,0.326388]
[1724269426915,0.012,61279.0,61276.0,0.326388]
[1724269427116,0.005,61279.0,61276.0,0.326388]
[1724269427293,0.0362043,61281.0,61270.0,0.4752]
[1724269427294,0.0422043,61281.0,61273.0,0.326406]
[1724269427477,0.0422043,61281.0,61280.0,0.489555]
[1724269427678,0.0462043,61281.0,61271.0,0.16400298]
[1724269427924,0.0402043,61281.0,61270.0,0.4752]
[1724269428124,0.0402043,61281.0,61277.0,0.163193]
[1724269428525,0.0402043,61281.0,61278.0,0.16319]
[1724269428986,0.0362043,61281.0,61278.0,0.16319]
[1724269429185,0.0402043,61281.0,61278.0,0.16319]
[1724269429607,0.0462043,61281.0,61278.0,0.16319]
[1724269429819,0.0362043,61281.0,61277.0,0.326384]
[1724269430063,0.0362043,61281.0,61272.0,0.326409]
[1724269430064,0.0362043,61281.0,61280.0,0.815925]
[1724269430222,0.0362043,61281.0,61280.0,1.30629798]
[1724269430223,0.0462043,61281.0,61280.0,1.30629798]
[1724269430398,0.01,61281.0,61280.0,1.60556368]
[1724269430607,0.006,61281.0,61280.0,1.60556368]
[1724269430807,0.006,61281.0,61280.0,1.27919368]
[1724269431010,0.163149,61294.0,61280.0,0.16400298]
[1724269431296,0.001,61281.0,61280.0,0.97992798]
[1724269431509,0.001,61281.0,61280.0,1.30629798]
[1724269432728,0.005,61281.0,61280.0,1.30629798]
[1724269433150,0.001,61281.0,61280.0,1.30629798]
[1724269433364,0.001,61281.0,61280.0,1.142295]
[1724269433579,0.002,61281.0,61280.0,1.30729798]
[1724269433821,0.002,61281.0,61280.0,2.00946798]
[1724269434270,0.002,61281.0,61280.0,1.143295]
[1724269434673,0.002,61281.0,61280.0,1.142295]
[1724269434674,0.001,61281.0,61280.0,1.142295]
[1724269435664,0.163154,61292.0,61288.0,0.163163]
[1724269436065,0.163154,61292.0,61286.0,0.326335]
[1724269436273,0.163151,61293.0,61288.0,0.163162]
[1724269436485,0.163146,61295.0,61280.0,0.0059086]
[1724269436691,0.000826,61281.0,61280.0,0.97483658]
[1724269437288,0.000826,61281.0,61280.0,1.30120658]
[1724269437731,0.000826,61281.0,61280.0,1.30220658]
[1724269438145,0.000826,61281.0,61280.0,1.143295]
[1724269439014,0.000826,61281.0,61280.0,2.03556798]
[1724269439212,0.000826,61281.0,61280.0,2.16716798]
[1724269439437,0.001826,61281.0,61280.0,2.50728402]
[1724269439773,0.000826,61281.0,61280.0,2.50128402]
[1724269439972,0.001826,61281.0,61280.0,2.50228402]
[1724269440246,0.001826,61281.0,61280.0,2.50728402]
[1724269440456,0.001826,61281.0,61280.0,2.50828402]
[1724269440662,0.001826,61281.0,61280.0,2.50228402]
[1724269440897,0.001826,61281.0,61280.0,2.49828402]
[1724269441098,0.002826,61281.0,61280.0,2.15491402]
[1724269441913,0.002826,61281.0,61280.0,2.48528402]
[1724269442550,0.002826,61281.0,61280.0,2.90846995]
[1724269444067,0.002826,61281.0,61280.0,2.86508402]
[1724269444593,0.002826,61281.0,61280.0,2.90446995]
[1724269445546,0.002826,61281.0,61280.0,2.90846995]
[1724269445746,0.002826,61281.0,61280.0,3.23483995]
[1724269445949,0.002826,61281.0,61280.0,4.49463995]
[1724269445950,0.00243319,61281.0,61280.0,4.49463995]
[1724269446154,0.01704405,61304.0,61303.0,1.141868]
[1724269446509,0.402725,61317.0,61316.0,0.815447]
[1724269446635,0.402725,61317.0,61316.0,1.141626]
[1724269447644,0.402725,61317.0,61316.0,1.144626]
[1724269448779,0.403725,61317.0,61316.0,1.149626]
[1724269449018,0.001825,61317.0,61316.0,1.156626]
[1724269449262,0.001825,61317.0,61316.0,1.31262898]
[1724269449501,0.000825,61317.0,61316.0,1.31262898]
[1724269449762,0.001825,61317.0,61316.0,1.64480798]
[1724269449960,0.000825,61317.0,61316.0,1.63180798]
[1724269450221,0.001825,61317.0,61316.0,1.64880798]
[1724269451031,0.000825,61317.0,61316.0,1.64180798]
[1724269451432,0.000825,61317.0,61316.0,1.63180798]
[1724269451683,0.001825,61317.0,61316.0,1.97498698]
[1724269451908,0.001825,61317.0,61316.0,1.97198698]
[1724269452120,0.001825,61317.0,61316.0,1.74580798]
[1724269452323,0.001825,61317.0,61316.0,1.75780798]
[1724269452324,0.002825,61317.0,61316.0,1.75780798]
[1724269452736,0.000825,61317.0,61316.0,1.73180798]
[1724269452976,0.001825,61317.0,61316.0,1.74580798]
[1724269453251,0.001825,61317.0,61316.0,1.75980798]
[1724269454571,0.001825,61317.0,61316.0,0.517268]
[1724269454800,0.001825,61317.0,61316.0,0.843447]
[1724269454801,0.184025,61317.0,61316.0,0.843447]
[1724269455509,0.184025,61317.0,61316.0,0.829447]
[1724269455713,0.184025,61317.0,61316.0,0.835447]
[1724269455916,0.183025,61317.0,61316.0,0.821447]
[1724269456117,0.183025,61317.0,61316.0,0.826447]
[1724269456344,0.183025,61317.0,61316.0,0.820447]
[1724269456656,0.183025,61317.0,61316.0,0.826447]
[1724269457900,0.183025,61317.0,61316.0,0.820447]